bitfinex/quotes_ETHUSD_20240816
["timestamp","ask_amount","ask_price","bid_price","bid_amount"]
[1723817354373,13.09419,2587.5,2587.4,0.78918507]
[1723817354524,9.22946,2587.5,2587.4,0.78918507]
[1723817354973,13.09419,2587.5,2587.4,0.78918507]
[1723817355178,19.42522,2587.5,2587.4,0.78918507]
[1723817355346,18.56049,2587.5,2587.4,0.78918507]
[1723817355849,12.22946,2587.5,2587.4,0.78918507]
[1723817356160,16.95892,2587.5,2587.4,0.78918507]
[1723817356395,16.95892,2587.5,2587.2,1.57837015]
[1723817356396,15.46012,2587.3,2587.2,1.23e-06]
[1723817356705,24.71205,2587.3,2587.2,1.23e-06]
[1723817356997,24.0864604,2587.3,2587.2,1.23e-06]
[1723817357208,3.86643,2586.4,2585.7,3.86733]
[1723817357349,5.36615,2586.6,2585.7,3.86733]
[1723817357350,3.86654,2586.3,2585.7,3.86733]
[1723817357554,3.86584,2586.8,2585.7,0.77348]
[1723817357801,3.86584,2586.8,2585.4,37.4977]
[1723817357802,3.86616,2586.6,2585.8,3.86721]
[1723817358096,1.5,2586.9,2585.8,3.86719]
[1723817358248,3.86647,2586.4,2585.7,3.8674]
[1723817358451,3.86623,2586.5,2585.8,6.86719]
[1723817358768,3.86694,2586.1,2585.6,1.4471649]
[1723817358964,3.86698,2586.0,2585.5,2.4977]
[1723817359172,3.86698,2586.0,2585.3,0.1265109]
[1723817359173,3.86708,2586.0,2585.3,0.1265109]
[1723817359366,3.86766,2585.6,2585.3,0.1265109]
[1723817359592,3.86729,2585.8,2585.3,0.1265109]
[1723817359799,3.86707,2586.0,2585.3,4.39870644]
[1723817359999,1.5,2586.5,2585.6,3.86744]
[1723817360226,3.86668,2586.2,2585.5,3.86758]
[1723817360378,3.86701,2586.0,2585.4,2.3709]
[1723817360576,3.86722,2585.9,2585.4,2.3709]
[1723817360810,3.86701,2586.0,2585.4,2.3709]
[1723817360985,3.86701,2586.0,2585.5,0.29015964]
[1723817361188,3.86612,2586.6,2585.6,0.07734658]
[1723817361418,8.91687902,2587.0,2586.3,6.22333]
[1723817361627,1.18576902,2587.0,2586.3,2.3569]
[1723817361779,1.18576902,2587.0,2586.4,3.86635]
[1723817361978,1.18576902,2587.0,2586.5,0.07731635]
[1723817362190,1.18576902,2587.0,2586.8,3.86565]
[1723817362498,1.18576902,2587.0,2586.9,6.21683]
[1723817362897,1.18576902,2587.0,2586.9,9.21683]
[1723817363293,1.18576902,2587.0,2586.9,13.08246]
[1723817363499,1.18576902,2587.0,2586.9,13.63246]
[1723817364030,1.55411816,2587.1,2587.0,7.73096]
[1723817364348,1.55411816,2587.1,2587.0,11.87328373]
[1723817364535,1.55411816,2587.1,2587.0,4.14232373]
[1723817364844,1.55411816,2587.1,2587.0,3.0]
[1723817365135,1.55411816,2587.1,2586.9,2.3512]
[1723817365136,9.22906,2587.7,2586.9,2.3512]
[1723817365338,3.86431,2587.8,2587.0,1.471686]
[1723817365553,3.86445,2587.7,2587.0,4.471686]
[1723817365765,3.86419,2587.9,2587.1,0.6822886]
[1723817365978,3.86452,2587.7,2587.1,0.6822886]
[1723817366253,5.36351,2588.4,2587.6,3.86449]
[1723817366458,3.86377,2588.2,2587.4,3.86478]
[1723817366605,3.86377,2588.2,2587.5,0.55]
[1723817366808,3.86351,2588.4,2587.6,3.86454]
[1723817366809,3.86348,2588.4,2587.6,3.86454]
[1723817367051,0.386351,2588.3,2587.6,3.86454]
[1723817367258,3.86368,2588.2,2587.7,0.03513296]
[1723817367582,3.86368,2588.2,2587.5,4.41472]
[1723817367760,3.86348,2588.4,2587.8,0.03511157]
[1723817367938,3.86348,2588.4,2587.6,3.86444]
[1723817367939,5.36356,2588.3,2587.6,3.86444]
[1723817368267,5.36356,2588.3,2587.9,0.03509018]
[1723817368544,5.36348,2588.4,2587.6,7.72893]
[1723817368731,5.36348,2588.4,2588.0,0.0350688]
[1723817368904,3.86316,2588.6,2587.8,0.07727824]
[1723817369104,3.86316,2588.6,2588.1,0.03504741]
[1723817369311,3.86348,2588.4,2588.0,2.4819]
[1723817369509,3.86348,2588.4,2587.7,4.41443]
[1723817369510,3.86348,2588.4,2588.2,0.03502603]
[1723817369917,4.785762,2588.6,2587.9,3.86412]
[1723817370120,3.86287,2588.8,2588.3,0.03693498]
[1723817370322,3.86256,2589.0,2588.1,0.55]
[1723817370644,3.86256,2589.0,2588.4,0.04291858]
[1723817370845,3.86256,2589.0,2588.2,6.19516]
[1723817371150,3.86287,2588.8,2588.5,0.04289185]
[1723817371364,3.86314,2588.6,2588.1,3.0]
[1723817371534,1.5,2588.7,2587.8,3.0]
[1723817371535,3.86368,2588.3,2587.8,3.0]
[1723817371864,3.86347,2588.4,2587.7,2.3316]
[1723817371865,3.86348,2588.4,2587.7,5.3316]
[1723817372259,3.86317,2588.6,2588.0,3.86397]
[1723817372470,7.72539,2588.9,2588.1,3.86382]
[1723817372648,3.86195,2589.4,2587.7,3.0]
[1723817372649,1.5,2588.6,2587.7,3.0]
[1723817372853,3.86369,2588.2,2587.6,3.86455]
[1723817373048,3.86369,2588.2,2587.7,3.55]
[1723817373360,3.86369,2588.2,2587.7,0.55]
[1723817373565,3.86345,2588.4,2587.7,0.55]
[1723817373863,3.8637,2588.2,2587.7,0.55]
[1723817374364,3.86347,2588.4,2587.7,4.41442]
[1723817374564,3.86347,2588.4,2587.8,3.0]
[1723817375110,6.26944,2588.8,2587.0,0.3872]
[1723817375111,3.8649,2587.4,2587.0,0.3872]
[1723817375228,3.8652,2587.2,2586.9,2.4316]
[1723817375428,3.8652,2587.2,2586.6,2.4316]
[1723817375627,3.86548,2587.0,2586.6,2.4316]
[1723817376049,3.86535,2587.1,2586.6,2.4316]
[1723817377138,3.8652,2587.2,2586.6,2.4316]
[1723817377359,3.86535,2587.1,2586.6,2.4316]
[1723817377586,3.86497,2587.4,2586.6,2.4316]
[1723817377745,1.5,2587.6,2586.6,2.4316]
[1723817377746,3.86526,2587.2,2586.6,2.4316]
[1723817378088,3.86479,2587.5,2586.8,3.86573]
[1723817378241,1.5,2588.0,2586.9,3.86552]
[1723817378444,3.86469,2587.6,2587.0,3.0]
[1723817378776,3.86469,2587.6,2587.0,6.86546]
[1723817378936,1.5,2588.0,2587.0,3.686546]
[1723817378937,3.86421,2587.9,2587.0,3.686546]
[1723817379141,9.37769,2588.9,2587.1,3.0]
[1723817379142,3.86475,2587.5,2587.1,3.0]
[1723817379345,1.5,2588.0,2587.1,3.0]
[1723817379638,1.5,2588.0,2586.8,2.4982]
[1723817379639,3.86469,2587.6,2586.9,3.86559]
[1723817379952,3.8655,2587.0,2586.4,2.4657]
[1723817380250,3.86542,2587.1,2586.4,2.4657]
[1723817380251,3.86539,2587.1,2586.4,2.4657]
[1723817380452,0.536469,2587.5,2586.4,2.4657]
[1723817380453,3.865,2587.4,2586.5,3.86608]
[1723817380680,3.865,2587.4,2586.7,3.8659]
[1723817380681,3.86497,2587.4,2586.7,3.8659]
[1723817380848,3.86503,2587.3,2586.7,3.8659]
[1723817381383,3.86503,2587.3,2586.5,3.86613]
[1723817381389,4.3052799,2587.3,2586.5,3.86613]
[1723817381686,3.86392,2588.1,2587.3,3.86495]
[1723817381904,6.23587,2588.3,2587.4,3.86478]
[1723817382184,0.3304524,2588.2,2587.3,2.4097]
[1723817382345,2.432224,2588.4,2587.7,3.86429]
[1723817382544,5.36339,2588.4,2587.7,3.86429]
[1723817382784,3.86395,2588.1,2587.3,6.27461]
[1723817383096,3.86383,2588.2,2587.5,3.86469]
[1723817383298,3.86383,2588.2,2587.6,3.55]
[1723817383493,5.36344,2588.4,2587.7,7.72877]
[1723817383494,3.86344,2588.4,2587.7,7.72877]
[1723817383695,3.86355,2588.3,2587.6,4.76949]
[1723817383897,7.72692,2588.4,2587.7,3.86442]
[1723817384096,2.3326,2588.7,2587.7,4.727825]
[1723817384097,3.86316,2588.6,2587.7,4.727825]
[1723817384329,2.3326,2588.7,2588.0,3.86386]
[1723817384527,2.3326,2588.7,2588.1,7.800206]
[1723817384698,2.3326,2588.7,2588.2,3.86359]
[1723817384902,2.3326,2588.7,2588.5,3.8631]
[1723817385118,2.3326,2588.7,2588.6,11.27618]
[1723817385325,2.3326,2588.7,2588.6,11.853798]
[1723817385491,2.3326,2588.7,2588.6,12.403798]
[1723817385824,2.3326,2588.7,2588.6,7.41309]
[1723817386452,2.3326,2588.7,2588.6,3.0]
[1723817386726,2.3326,2588.7,2588.6,3.86309]
[1723817386928,2.3326,2588.7,2588.6,7.41309]
[1723817387102,2.3326,2588.7,2588.6,11.27618]
[1723817387301,2.3326,2588.7,2588.6,12.403798]
[1723817388237,2.3326,2588.7,2588.6,3.55]
[1723817388445,2.3326,2588.7,2588.5,3.0]
[1723817388737,2.3326,2588.7,2588.3,6.86344]
[1723817388890,6.19563,2588.7,2588.0,3.8639]
[1723817389091,2.56586,2588.7,2587.9,7.45]
[1723817389334,2.3326,2588.7,2588.0,3.86392]
[1723817389505,2.3326,2588.7,2588.2,3.86356]
[1723817389888,6.19568,2588.7,2588.0,3.8639]
[1723817390092,7.201533,2588.7,2588.0,3.86392]
[1723817390408,7.201533,2588.7,2588.0,7.72782]
[1723817390593,3.86328,2588.5,2588.1,3.0]
[1723817390798,7.201443,2588.7,2588.0,3.0]
[1723817390994,6.19559,2588.7,2588.0,3.0]
[1723817391315,2.3326,2588.7,2588.1,3.86383]
[1723817391516,2.3326,2588.7,2588.3,3.86345]
[1723817391715,2.3326,2588.7,2588.2,3.0]
[1723817392640,2.3326,2588.7,2588.4,3.8633]
[1723817393805,2.3326,2588.7,2588.5,3.86322]
[1723817394130,2.3326,2588.7,2588.3,3.86344]
[1723817394131,2.3326,2588.7,2588.3,7.72688]
[1723817394346,2.3326,2588.7,2588.2,3.0]
[1723817394508,2.56586,2588.7,2588.2,3.0]
[1723817394716,6.42891,2588.7,2588.2,3.0]
[1723817395630,3.86339,2588.4,2588.2,3.0]
[1723817395834,2.56586,2588.7,2587.7,19.79]
[1723817395835,4.06586,2588.7,2587.7,19.79]
[1723817396110,3.86362,2588.3,2587.7,19.79]
[1723817396294,0.642896,2588.5,2587.7,19.79]
[1723817396295,3.86383,2588.1,2587.7,19.79]
[1723817396496,3.86415,2587.9,2587.3,6.27468]
[1723817396938,0.77276,2588.1,2587.4,3.8648]
[1723817397099,3.86363,2588.3,2587.6,3.86449]
[1723817397296,7.72729,2588.3,2587.6,3.86449]
[1723817397645,3.86363,2588.3,2587.7,3.86441]
[1723817397931,3.8637,2588.2,2587.6,3.86449]
[1723817398524,3.86385,2588.1,2587.7,3.0]
[1723817398744,3.86385,2588.1,2587.5,3.0]
[1723817398952,1.5,2588.1,2587.3,2.4097]
[1723817399256,3.86438,2587.8,2587.3,2.4097]
[1723817399553,1.5,2588.4,2587.3,2.4097]
[1723817399747,3.86399,2588.0,2587.3,6.27464]
[1723817399927,3.8638,2588.2,2587.6,3.86458]
[1723817400113,3.86349,2588.4,2587.7,3.86443]
[1723817400312,4.249829,2588.4,2587.5,3.86465]
[1723817400515,3.86388,2588.1,2587.5,3.86465]
[1723817400711,3.86379,2588.2,2587.5,3.86459]
[1723817400913,3.8326,2588.7,2587.3,3.037164]
[1723817400914,3.86315,2588.6,2587.7,3.86443]
[1723817401129,7.72692,2588.4,2587.8,0.55]
[1723817401334,7.72692,2588.4,2587.6,3.0]
[1723817401335,3.86392,2588.1,2587.6,3.0]
[1723817401552,3.86392,2588.1,2587.5,3.86465]
[1723817401751,3.86364,2588.3,2587.6,3.55]
[1723817401961,3.86364,2588.3,2587.3,2.4097]
[1723817401962,1.5,2588.1,2587.3,2.4097]
[1723817402267,3.86488,2587.4,2587.3,2.4097]
[1723817402483,7.72976,2587.4,2587.3,2.4097]
[1723817404069,3.86488,2587.4,2587.3,2.4097]
[1723817404392,5.36442,2587.8,2587.3,2.4097]
[1723817404677,7.72935,2587.6,2587.3,2.4097]
[1723817404840,0.922848,2587.8,2587.3,2.4097]
[1723817404841,7.72877,2587.8,2587.3,2.4097]
[1723817405043,1.5,2588.1,2587.3,2.4097]
[1723817405244,3.86421,2587.9,2587.3,2.4097]
[1723817405443,3.86431,2587.8,2587.3,2.4097]
[1723817405663,3.86428,2587.8,2587.3,2.4097]
[1723817405860,1.5,2588.1,2587.3,2.4097]
[1723817406063,3.86345,2588.4,2587.3,2.4097]
[1723817406064,3.8646,2587.6,2587.3,2.4097]
[1723817406379,1.5,2588.2,2587.3,2.4097]
[1723817406380,5.36376,2588.2,2587.3,2.4097]
[1723817406612,3.86412,2588.0,2587.3,6.27465]
[1723817406873,3.86488,2587.4,2587.3,2.4097]
[1723817408176,9.22976,2587.4,2587.3,2.4097]
[1723817408327,3.86488,2587.4,2587.3,2.4097]
[1723817409077,9.22976,2587.4,2587.3,2.4097]
[1723817409275,18.268972,2587.4,2587.3,2.4097]
[1723817409459,21.268972,2587.4,2585.8,3.86714]
[1723817409662,1.5,2587.1,2585.9,3.86712]
[1723817409994,8.174332,2587.4,2585.5,0.3872]
[1723817409995,3.86652,2586.3,2585.6,3.86747]
[1723817410175,3.86643,2586.4,2585.6,3.86747]
[1723817410383,3.86618,2586.6,2585.8,3.86719]
[1723817410586,3.86571,2586.9,2586.2,3.86655]
[1723817410743,3.86554,2587.0,2585.7,3.86741]
[1723817410744,3.86634,2586.5,2585.7,3.86741]
[1723817410946,3.86634,2586.5,2585.8,3.86717]
[1723817411150,3.86602,2586.7,2585.7,4.254151]
[1723817411151,3.86601,2586.7,2585.9,3.86704]
[1723817411360,3.86594,2586.7,2586.1,3.86681]
[1723817411764,3.86511,2587.3,2586.6,3.86596]
[1723817411952,3.86507,2587.3,2586.7,0.386596]
[1723817412149,3.86482,2587.5,2586.7,3.86579]
[1723817412461,3.86423,2587.9,2587.2,3.86503]
[1723817412765,2.3225,2588.1,2586.5,3.0]
[1723817412766,6.18642,2588.1,2587.3,3.94224164]
[1723817413090,6.18642,2588.1,2587.4,3.0]
[1723817413091,2.3225,2588.1,2587.4,3.0]
[1723817413387,2.3225,2588.1,2587.5,0.55]
[1723817413600,2.3225,2588.1,2587.9,3.86401]
[1723817413897,2.3225,2588.1,2588.0,11.27796]
[1723817414258,2.3225,2588.1,2588.0,15.52914]
[1723817414449,0.08402244,2588.1,2588.0,15.14194]
[1723817415060,3.86149,2589.7,2588.0,7.41398]
[1723817415265,5.3612,2589.9,2589.1,3.86233]
[1723817415459,3.86145,2589.7,2589.0,3.86248]
[1723817415703,5.3612,2589.9,2589.0,3.86248]
[1723817415704,3.8612,2589.9,2589.1,3.8623]
[1723817415875,3.86092,2590.1,2589.2,3.55]
[1723817416213,3.86185,2589.5,2589.2,3.0]
[1723817416493,3.86205,2589.3,2588.6,3.86309]
[1723817416698,3.86205,2589.3,2588.8,3.0]
[1723817416903,3.86205,2589.3,2588.7,0.55]
[1723817417279,1.5,2589.8,2588.6,3.0]
[1723817417280,3.86237,2589.1,2588.6,3.0]
[1723817417471,3.86237,2589.1,2588.3,3.86349]
[1723817417472,3.86237,2589.1,2588.4,3.0]
[1723817417656,3.8621,2589.3,2588.5,3.86322]
[1723817417970,3.8618,2589.5,2588.8,3.86276]
[1723817418175,1.5,2589.8,2588.7,3.8628]
[1723817418378,1.5,2589.8,2588.7,1.10646249]
[1723817418379,3.86215,2589.3,2588.7,1.10646249]
[1723817418580,3.86193,2589.4,2588.3,3.86348]
[1723817418581,3.86231,2589.2,2588.3,6.86347]
[1723817418765,3.86258,2589.0,2588.4,3.0]
[1723817419155,3.86258,2589.0,2588.3,3.0]
[1723817419357,3.86226,2589.2,2588.5,3.86311]
[1723817419803,1.5,2589.7,2588.4,4.41325]
[1723817420114,7.72522,2589.0,2588.5,3.7799657]
[1723817420334,3.8626,2589.0,2588.0,3.86391]
[1723817420468,3.86223,2589.2,2588.1,0.55]
[1723817420671,3.86223,2589.2,2588.4,3.86329]
[1723817420869,3.86223,2589.2,2588.5,4.41323]
[1723817421213,3.86252,2589.0,2588.2,3.86361]
[1723817421361,3.86298,2588.7,2588.0,3.86384]
[1723817421555,3.86298,2588.7,2588.1,3.0]
[1723817421759,7.72544,2588.9,2588.1,6.86381]
[1723817421991,8.497984,2588.9,2588.1,6.86381]
[1723817422204,3.86303,2588.7,2588.1,3.0]
[1723817422715,3.86303,2588.7,2587.6,3.86454]
[1723817422716,1.5,2588.6,2587.6,11.31451]
[1723817422893,3.86383,2588.2,2587.6,7.45]
[1723817423101,1.5,2588.6,2587.1,7.45]
[1723817423102,3.86408,2588.0,2587.1,7.45]
[1723817423263,1.5,2588.6,2587.3,3.86498]
[1723817423264,0.386383,2588.2,2587.3,3.86498]
[1723817423460,1.5,2588.9,2587.8,3.86418]
[1723817423659,3.86319,2588.6,2587.8,3.86416]
[1723817423964,3.86314,2588.6,2587.8,3.86417]
[1723817424204,3.86314,2588.6,2587.9,0.386417]
[1723817424411,1.5,2588.9,2587.6,6.86451]
[1723817424412,5.36268,2588.9,2587.6,6.86451]
[1723817424709,3.86377,2588.2,2587.6,3.0]
[1723817424911,3.86339,2588.4,2587.7,3.86442]
[1723817425079,3.86339,2588.4,2587.8,3.0]
[1723817425415,7.72692,2588.4,2587.8,3.0]
[1723817425607,3.86339,2588.4,2587.8,3.0]
[1723817425930,3.86317,2588.6,2587.9,3.86411]
[1723817426066,3.86327,2588.5,2587.9,3.86411]
[1723817426268,3.86407,2588.0,2587.8,3.0]
[1723817426607,0.536268,2588.8,2587.0,7.45]
[1723817426608,3.8639,2588.1,2587.4,3.86485]
[1723817426913,3.8639,2588.1,2587.5,3.0]
[1723817426914,3.86414,2587.9,2587.5,3.0]
[1723817427114,3.86414,2587.9,2587.0,11.31538]
[1723817427115,0.772802,2587.9,2587.0,11.31538]
[1723817427317,1.5,2588.2,2587.0,3.86538]
[1723817427318,3.86469,2587.6,2587.0,3.86538]
[1723817427518,3.86434,2587.8,2587.0,4.63849]
[1723817427853,3.86407,2588.0,2587.2,3.86514]
[1723817427961,6.19352,2587.9,2587.2,3.86514]
[1723817428162,6.19352,2587.9,2586.6,0.3]
[1723817428163,2.3293,2588.1,2587.5,3.86458]
[1723817428362,2.3293,2588.1,2587.3,2.3241]
[1723817428667,2.3293,2587.5,2587.2,3.0]
[1723817428983,2.3293,2587.5,2586.6,7.75]
[1723817428984,2.3293,2587.5,2586.7,3.86584]
[1723817429304,6.19446,2587.3,2586.6,7.45]
[1723817429460,2.3293,2587.2,2586.7,3.86583]
[1723817429660,3.86476,2587.5,2587.0,3.86539]
[1723817429661,2.3293,2587.5,2587.0,3.86539]
[1723817429865,2.3293,2587.5,2587.1,0.386539]
[1723817430163,2.3293,2587.5,2587.0,7.73078]
[1723817430363,2.3261,2587.7,2587.4,3.86485]
[1723817430563,2.3261,2588.0,2587.6,3.86446]
[1723817430776,2.3261,2588.3,2587.8,3.8642]
[1723817431212,2.3261,2588.3,2587.7,0.55]
[1723817431378,3.86356,2588.3,2587.7,0.55]
[1723817431724,3.86253,2589.0,2587.7,0.55]
[1723817431725,2.3261,2588.6,2587.8,2.3241]
[1723817432005,2.3261,2588.6,2588.0,3.86398]
[1723817432205,2.3261,2588.6,2587.9,0.65521314]
[1723817432410,2.3261,2588.6,2588.1,0.10528095]
[1723817432574,2.3261,2588.6,2588.0,0.10530513]
[1723817432917,2.3261,2588.6,2588.2,0.10525677]
[1723817433067,2.3261,2588.6,2588.1,3.96902815]
[1723817433269,3.86304,2588.7,2588.3,0.1051698]
[1723817433483,3.86178,2589.5,2588.4,3.8633]
[1723817433484,2.4909,2589.0,2588.4,3.8633]
[1723817433686,2.4909,2589.0,2588.4,0.10514562]
[1723817433893,3.86274,2588.9,2588.4,0.10514562]
[1723817434186,3.86274,2588.9,2588.5,0.10503669]
[1723817434566,3.86274,2588.9,2588.2,7.249951]
[1723817434567,3.86274,2588.9,2588.3,3.86345]
[1723817434913,2.3662,2589.4,2588.4,2.97916086]
[1723817435219,6.22758,2589.8,2589.1,3.86225]
[1723817435452,2.3662,2589.8,2589.2,0.55]
[1723817435761,1.5,2590.2,2589.6,3.86146]
[1723817435762,2.3662,2590.1,2589.6,3.86146]
[1723817435921,2.3662,2590.1,2589.5,3.86168]
[1723817436124,6.16032,2590.3,2589.6,3.65461399]
[1723817436435,3.86086,2590.1,2589.6,3.10461399]
[1723817436598,3.8613,2589.8,2589.6,0.10461399]
[1723817436798,3.8611,2590.0,2589.6,0.10461399]
[1723817437003,2.2997,2590.3,2589.6,0.10461399]
[1723817437004,3.86075,2590.2,2589.6,0.10461399]
[1723817437258,4.476835,2590.2,2589.4,3.0]
[1723817437465,4.476835,2590.2,2589.7,0.10429813]
[1723817437466,3.86111,2590.0,2589.7,0.10429813]
[1723817437608,2.3152,2589.8,2589.2,0.55]
[1723817437804,2.3152,2589.8,2589.3,3.86202]
[1723817438064,2.3152,2589.8,2589.3,3.86195]
[1723817438352,6.17611,2590.1,2589.5,3.86163]
[1723817438501,3.86122,2589.9,2589.3,3.86197]
[1723817438707,3.86122,2589.9,2589.2,3.55]
[1723817439054,3.86122,2589.9,2589.2,7.41216]
[1723817439286,3.86113,2590.0,2589.3,3.86203]
[1723817439443,3.86113,2590.0,2589.4,0.55]
[1723817439810,3.86163,2589.6,2589.2,3.55]
[1723817440097,3.86132,2589.8,2589.2,0.55]
[1723817440246,3.86145,2589.7,2589.2,0.55]
[1723817440598,3.86079,2590.2,2589.5,3.86165]
[1723817440806,6.33098,2590.4,2589.6,7.41152]
[1723817440947,6.33098,2590.4,2589.8,3.86127]
[1723817441143,6.33098,2590.4,2589.8,7.72254]
[1723817441369,2.4705,2590.4,2589.9,0.55]
[1723817441570,1.5,2591.0,2589.9,3.86114]
[1723817441571,3.86018,2590.6,2589.9,3.86114]
[1723817441848,3.86018,2590.6,2590.0,0.55]
[1723817442204,3.86018,2590.6,2590.0,0.65361691]
[1723817442503,6.16346,2590.3,2590.0,0.10361691]
[1723817442792,6.16346,2590.3,2589.7,6.8614]
[1723817442793,3.86118,2589.9,2589.7,3.0]
[1723817443000,3.86085,2590.1,2589.4,6.86181]
[1723817443203,3.86138,2589.8,2589.4,3.0]
[1723817443339,2.3239,2589.7,2589.4,3.0]
[1723817443663,3.86116,2589.9,2589.4,3.0]
[1723817444171,2.3239,2590.0,2589.4,3.0]
[1723817444383,3.86153,2589.7,2589.3,7.45]
[1723817444674,3.86175,2589.5,2588.8,6.18684]
[1723817444887,3.86207,2589.3,2588.8,3.86278]
[1723817445046,6.24035,2589.5,2588.8,3.86278]
[1723817445444,3.86198,2589.4,2588.8,4.63536]
[1723817445820,3.86244,2589.1,2588.5,2.74087603]
[1723817446092,3.86244,2589.1,2588.4,23.57327]
[1723817446093,3.8625,2589.0,2588.4,23.57327]
[1723817446465,3.8625,2589.0,2588.1,19.79]
[1723817446466,3.86291,2588.8,2588.1,3.86375]
[1723817446687,6.26781,2589.1,2588.4,3.8633]
[1723817447010,3.86334,2588.5,2587.8,3.8642]
[1723817447212,6.23102,2588.3,2587.6,3.8645]
[1723817447397,3.86384,2588.1,2587.3,2.3241]
[1723817447597,3.86384,2588.1,2586.8,12.26]
[1723817447598,3.8643,2587.8,2587.4,0.97741]
[1723817447798,3.86388,2588.1,2587.2,3.86506]
[1723817447983,10.09469,2588.3,2587.6,3.86446]
[1723817448321,6.23103,2588.3,2587.7,0.386446]
[1723817448534,2.3674,2588.3,2587.3,7.72989]
[1723817448815,6.231,2588.3,2587.5,3.86463]
[1723817448968,6.231,2588.3,2587.5,3.09706]
[1723817448969,2.3674,2588.3,2587.5,3.09706]
[1723817449176,3.86335,2588.5,2587.5,3.09706]
[1723817449177,3.86347,2588.4,2587.7,3.86431]
[1723817449398,2.3054,2588.5,2587.3,3.86491]
[1723817449597,3.86398,2588.1,2587.4,3.86486]
[1723817449798,3.86406,2588.0,2587.3,4.251401]
[1723817450113,3.86406,2588.0,2587.4,3.55]
[1723817450114,3.86398,2588.0,2587.4,3.55]
[1723817450464,3.86463,2587.6,2586.9,4.09792]
[1723817450711,6.13512,2587.8,2586.9,3.86551]
[1723817450712,3.86452,2587.7,2586.9,3.86551]
[1723817450912,2.2708,2587.8,2586.7,3.8658]
[1723817450913,3.86496,2587.4,2586.7,3.8658]
[1723817451130,3.86496,2587.4,2586.8,0.618995]
[1723817451471,2.4251,2587.3,2586.7,3.86582]
[1723817451689,3.86465,2587.6,2587.0,3.86536]
[1723817451887,2.4251,2587.7,2587.1,3.86532]
[1723817452124,2.4251,2587.7,2587.2,3.86509]
[1723817452421,1.5,2588.2,2586.5,4.36710943]
[1723817452422,3.8644,2587.8,2587.1,3.86533]
[1723817452612,3.86443,2587.7,2587.1,3.86533]
[1723817452783,3.86443,2587.7,2587.2,0.55]
[1723817452983,3.86443,2587.7,2587.1,0.55]
[1723817453186,3.86418,2587.9,2587.1,4.4152]
[1723817453386,3.86418,2587.9,2587.2,0.4801739]
[1723817453387,3.86437,2587.8,2587.2,0.4801739]
[1723817453581,2.2712,2588.1,2587.3,4.4149]
[1723817453582,6.13512,2588.1,2587.3,4.4149]
[1723817453795,3.86409,2588.0,2587.4,0.48950739]
[1723817454030,2.2712,2588.1,2587.3,0.55]
[1723817454253,3.86428,2587.8,2587.3,0.55]
[1723817454693,3.86422,2587.9,2587.3,0.55]
[1723817454892,2.2712,2588.1,2587.3,1.291516]
[1723817455097,3.86429,2587.8,2587.3,3.55]
[1723817455632,3.86429,2587.8,2586.8,3.86575]
[1723817455633,3.86479,2587.5,2587.1,3.0]
[1723817455836,3.86503,2587.3,2586.9,0.386575]
[1723817456037,3.86503,2587.3,2586.7,3.86584]
[1723817456208,3.86479,2587.5,2586.7,4.639043]
[1723817456408,3.86479,2587.5,2586.4,0.2660235]
[1723817456734,3.86479,2587.5,2586.7,3.86588]
[1723817456913,3.86479,2587.5,2586.8,0.55]
[1723817457120,3.86496,2587.4,2586.8,0.64898245]
[1723817457301,6.28857,2587.9,2586.8,4.51461245]
[1723817457302,3.86472,2587.6,2586.8,4.51461245]
[1723817457502,3.86472,2587.6,2586.9,6.86562]
[1723817457697,3.86452,2587.7,2587.0,0.55]
[1723817457980,3.86452,2587.7,2587.0,1.50054922]
[1723817458107,2.4244,2587.9,2587.0,1.5778375]
[1723817458310,2.4244,2587.9,2587.4,3.86488]
[1723817458513,3.86466,2587.6,2587.0,5.36593922]
[1723817458695,3.86466,2587.6,2587.5,0.09882878]
[1723817458916,3.86475,2587.5,2587.0,0.55]
[1723817459898,3.86446,2587.7,2587.0,4.41547]
[1723817460243,3.86482,2587.5,2587.1,3.741555]
[1723817460412,3.86482,2587.5,2586.4,4.1323635]
[1723817460413,1.5,2587.5,2586.4,0.2660235]
[1723817460619,3.86559,2587.0,2586.4,0.2660235]
[1723817461208,0.03,2587.1,2586.4,0.2660235]
[1723817461432,0.03,2587.1,2587.0,3.86548]
[1723817461661,0.03,2587.1,2586.8,3.86568]
[1723817461865,0.03,2587.1,2586.8,0.386568]
[1723817462161,0.03,2587.1,2586.8,4.252208]
[1723817462464,0.03,2587.1,2586.9,3.0]
[1723817462632,0.03,2587.1,2587.0,0.55]
[1723817463050,0.03,2587.1,2587.0,12.14644]
[1723817463217,0.00107389,2587.1,2587.0,11.28096]
[1723817463423,0.00107389,2587.1,2587.0,12.94919594]
[1723817464032,0.00107389,2587.1,2587.0,16.81467594]
[1723817464364,3.845e-05,2587.1,2587.0,20.68015594]
[1723817464663,3.845e-05,2587.1,2587.0,15.27329594]
[1723817464958,3.845e-05,2587.1,2587.0,46.40781594]
[1723817465131,3.845e-05,2587.1,2587.0,9.08371594]
[1723817465730,3.845e-05,2587.1,2587.0,7.41548]
[1723817465930,3.845e-05,2587.1,2587.0,11.28096]
[1723817466459,3.845e-05,2587.1,2587.0,0.55]
[1723817466634,3.845e-05,2587.1,2586.8,0.55]